bitfinex-derivatives/quotes_BNBF0:USTF0_20250330
["timestamp","ask_amount","ask_price","bid_price","bid_amount"]
[1743365345510,2.45130765,603.25,602.48,0.33196122]
[1743365345808,2.45130765,603.24,602.48,0.33196122]
[1743365346011,2.45130765,603.23,602.48,0.33196122]
[1743365346212,2.45126649,603.22,602.48,0.33196122]
[1743365346515,1.51722734,603.21,602.48,0.33196122]
[1743365346815,1.51722734,603.2,602.48,0.33196122]
[1743365347112,1.51722734,603.19,602.48,0.33196122]
[1743365347315,1.51722734,603.18,602.48,0.33196122]
[1743365347515,3.29848992,603.21,602.48,0.33196122]
[1743365347711,1.51595344,603.2,602.48,0.33196122]
[1743365347916,1.51595344,603.19,602.48,0.33196122]
[1743365348116,1.51597366,603.18,602.48,0.33196122]
[1743365348416,1.2689125,603.2,602.48,0.33196122]
[1743365349116,1.2689125,603.19,602.48,0.33196122]
[1743365349616,1.2689125,603.18,602.48,0.33196122]
[1743365350008,1.2689125,603.17,602.48,0.33196122]
[1743365350413,2.7049125,603.16,602.48,0.33196122]
[1743365351313,1.436,603.16,602.48,0.33196122]
[1743365353622,1.369,603.15,602.48,0.33196122]
[1743365365319,1.286,603.14,602.48,0.33196122]
[1743365371820,1.286,603.14,602.49,2.52430555]
[1743365373522,1.329,603.13,602.49,2.52430555]
[1743365373721,1.329,603.13,602.5,2.52430555]
[1743365376826,1.329,603.13,602.51,2.52430555]
[1743365378932,1.329,603.13,602.49,0.28866612]
[1743365380536,1.329,603.13,602.48,0.33196122]
[1743365380931,1.329,603.13,602.49,0.28866732]
[1743365382037,1.407,603.12,602.49,0.28866732]
[1743365383638,1.407,603.12,602.48,0.33196122]
[1743365384936,1.407,603.12,602.49,0.28871761]
[1743365386540,1.871,603.11,602.48,0.33196122]
[1743365387737,1.871,603.11,602.49,0.28870324]
[1743365389541,1.871,603.11,602.48,0.33196122]
[1743365399048,1.672,603.1,602.48,0.33196122]
[1743365399645,1.2642736,603.09,602.48,0.33196122]
[1743365400347,1.672,603.1,602.48,0.33196122]
[1743365400549,1.672,603.1,601.77,2.52430555]
[1743365400741,1.672,603.1,602.29,0.28873318]
[1743365400941,1.672,603.1,601.77,2.52430555]
[1743365401147,3.18365127,603.1,601.79,0.33234184]
[1743365401347,3.18365311,603.1,602.29,0.28880866]
[1743365401548,3.18365311,603.1,601.79,0.33234184]
[1743365401549,1.672,603.1,601.79,0.33234184]
[1743365402048,1.263573,603.09,601.79,0.33234184]
[1743365402651,1.263573,603.08,601.79,0.33234184]
[1743365402946,1.263573,603.08,601.8,0.28881226]
[1743365403152,1.263573,603.08,601.82,0.33232527]
[1743365403446,1.672,603.1,601.82,0.33232527]
[1743365403850,1.672,603.1,601.86,2.52430555]
[1743365404152,1.672,603.1,601.88,0.33229215]
[1743365406351,1.26194876,603.09,601.88,0.33229215]
[1743365406547,1.26194876,603.08,601.88,0.33229215]
[1743365407147,1.26194876,603.07,601.88,0.33229215]
[1743365407853,1.26194876,603.08,601.88,0.33229215]
[1743365408256,1.26194876,603.09,601.88,0.33229215]
[1743365409449,1.672,603.1,601.88,0.33229215]
[1743365410051,1.218,603.09,601.88,0.33229215]
[1743365415458,1.511,603.08,601.88,0.33229215]
[1743365418661,1.511,603.08,601.88,2.8565977]
[1743365420261,1.511,603.08,601.89,2.52430555]
[1743365420464,1.511,603.08,601.91,0.33227558]
[1743365426967,3.279,603.08,601.91,0.33227558]
[1743365434783,4.452,603.08,601.91,0.33227558]
[1743365436082,0.28881226,603.07,601.91,0.33227558]
[1743365436277,1.54931146,603.07,601.91,0.33227558]
[1743365436881,3.05681517,603.07,601.91,0.33227558]
[1743365437077,1.2604992,603.06,601.91,0.33227558]
[1743365437784,1.54932584,603.05,601.91,0.33227558]
[1743365438180,1.2604992,603.04,601.91,0.33227558]
[1743365438384,1.2604992,603.04,602.28,2.52430555]
[1743365439387,1.2604992,603.03,602.28,2.52430555]
[1743365439790,1.2604992,603.02,602.28,2.52430555]
[1743365439989,1.2604992,603.02,602.27,2.52430555]
[1743365440189,1.2604992,603.01,602.27,2.52430555]
[1743365440795,1.2604992,603.0,602.27,2.52430555]
[1743365440991,1.2604992,603.0,602.21,2.52430555]
[1743365441689,3.27723221,603.03,602.21,2.52430555]
[1743365441893,0.28884222,602.99,602.21,2.52430555]
[1743365442292,1.2604992,602.98,602.21,2.52430555]
[1743365442694,1.2604992,602.98,601.94,2.52430555]
[1743365443290,1.2604992,602.97,601.94,2.52430555]
[1743365443893,1.2604992,602.97,601.91,0.33227558]
[1743365444094,1.2604992,602.96,601.91,0.33227558]
[1743365444703,1.2604992,602.95,601.91,0.33227558]
[1743365444898,1.54938458,602.95,601.92,0.28888538]
[1743365445299,1.2604992,602.94,601.92,0.28888538]
[1743365446204,1.2604992,602.93,601.92,0.28888538]
[1743365446404,1.2604992,602.93,601.91,0.33227558]
[1743365446997,1.2604992,602.92,601.91,0.33227558]
[1743365447602,1.2604992,602.91,601.91,0.33227558]
[1743365447903,1.54945295,602.91,601.91,0.33227558]
[1743365448104,1.198,602.9,601.91,0.33227558]
[1743365448702,1.2604992,602.89,601.91,0.33227558]
[1743365449605,1.2604992,602.88,601.91,0.33227558]
[1743365450004,2.76556074,602.88,601.91,0.33227558]
[1743365450205,1.2604992,602.87,601.91,0.33227558]
[1743365451001,0.28896454,602.86,601.91,0.33227558]
[1743365451207,1.54946374,602.86,601.91,0.33227558]
[1743365451804,0.28896454,602.86,601.91,0.33227558]
[1743365452610,1.198,602.9,601.91,0.33227558]
[1743365452811,1.865,602.85,601.91,0.33227558]
[1743365453811,0.28893935,602.84,601.91,0.33227558]
[1743365455611,1.865,602.85,601.91,0.33227558]
[1743365456912,0.28893575,602.84,601.91,0.33227558]
[1743365458710,1.865,602.85,601.91,0.33227558]
[1743365459913,0.28891896,602.84,601.91,0.33227558]
[1743365464515,1.865,602.85,601.91,0.33227558]
[1743365465921,0.28892136,602.84,601.91,0.33227558]
[1743365467520,1.865,602.85,601.91,0.33227558]
[1743365468917,0.28891416,602.84,601.91,0.33227558]
[1743365470225,1.564,602.83,601.91,0.33227558]
[1743365471829,0.28891776,602.82,601.91,0.33227558]
[1743365473526,1.564,602.83,601.91,0.33227558]
[1743365474129,3.209,602.83,601.91,0.33227558]
[1743365474933,0.28889977,602.82,601.91,0.33227558]
[1743365476636,3.209,602.83,601.91,0.33227558]
[1743365477829,0.28890577,602.82,601.91,0.33227558]
[1743365479638,3.209,602.83,601.91,0.33227558]
[1743365479937,1.25830542,602.82,601.91,0.33227558]
[1743365480738,0.28892136,602.81,601.91,0.33227558]
[1743365482240,3.209,602.83,601.91,0.33227558]
[1743365482539,3.209,602.83,601.92,2.52430555]
[1743365483541,3.209,602.83,601.91,0.33227558]
[1743365488341,1.26055597,602.82,601.91,0.33227558]
[1743365488946,1.26055597,602.81,601.91,0.33227558]
[1743365489943,1.557,602.8,601.91,0.33227558]
[1743365491944,1.26155273,602.79,601.91,0.33227558]
[1743365492849,1.557,602.8,601.91,0.33227558]
[1743365493056,2.379,602.78,601.91,0.33227558]
[1743365502760,1.26451676,602.77,601.91,0.33227558]
[1743365503262,1.26451676,602.76,601.91,0.33227558]
[1743365503961,2.379,602.78,601.91,0.33227558]
[1743365503962,1.26451676,602.75,601.91,0.33227558]
[1743365504360,1.26451676,602.74,601.91,0.33227558]
[1743365505358,2.379,602.78,601.91,0.33227558]
[1743365505960,1.324,602.78,601.91,0.33227558]
[1743365506163,1.26450604,602.77,601.91,0.33227558]
[1743365506665,1.26450604,602.76,601.91,0.33227558]
[1743365507261,1.26450604,602.75,601.91,0.33227558]
[1743365507865,1.324,602.78,601.91,0.33227558]
[1743365508565,1.26483832,602.77,601.91,0.33227558]
[1743365508768,2.73283832,602.77,601.91,0.33227558]
[1743365509364,1.26483832,602.76,601.91,0.33227558]
[1743365509864,1.26483832,602.75,601.91,0.33227558]
[1743365510460,1.26483832,602.74,601.91,0.33227558]
[1743365511165,1.26483832,602.73,601.91,0.33227558]
[1743365512266,1.468,602.77,601.91,0.33227558]
[1743365512767,1.26518246,602.76,601.91,0.33227558]
[1743365513365,1.26518246,602.75,601.91,0.33227558]
[1743365513561,1.26518246,602.75,601.96,2.52430555]
[1743365513766,1.26518246,602.74,601.96,2.52430555]
[1743365514663,1.26518246,602.73,601.96,2.52430555]
[1743365515463,1.468,602.77,601.98,2.52430555]
[1743365516068,1.26502506,602.76,601.98,2.52430555]
[1743365516666,1.26502506,602.76,601.97,2.52430555]
[1743365517069,1.468,602.77,601.97,2.52430555]
[1743365517463,1.319,602.76,601.97,2.52430555]
[1743365518770,1.319,602.76,601.91,2.85658113]
[1743365518965,1.319,602.76,601.95,0.28889498]
[1743365521773,1.319,602.76,601.91,2.85658113]
[1743365523071,1.319,602.76,601.92,0.28890217]
[1743365524574,1.2647891,602.75,601.91,2.85658113]
[1743365524975,1.2647891,602.75,601.92,0.28890337]
[1743365525170,1.2647891,602.75,601.95,2.52430555]
[1743365525476,1.2647891,602.74,601.95,2.52430555]
[1743365526369,1.319,602.76,601.95,2.52430555]
[1743365526573,1.319,602.76,601.92,0.28890337]
[1743365526574,1.319,602.76,601.97,2.52430555]
[1743365528178,1.319,602.76,601.94,0.2888686]
[1743365530581,1.319,602.76,601.91,0.33227558]
[1743365531876,1.319,602.76,601.92,0.28892136]
[1743365533372,1.319,602.76,601.92,0.62119142]
[1743365533578,1.319,602.76,601.93,0.33226454]
[1743365535986,1.319,602.76,601.99,2.52430555]
[1743365536587,1.319,602.76,602.0,0.33222591]
[1743365540985,1.325,602.75,602.0,0.33222591]
[1743365552703,1.776,602.74,602.0,0.33222591]
[1743365557300,1.457,602.73,602.0,0.33222591]
[1743365560610,1.457,602.73,602.0,2.85653146]
[1743365561909,1.457,602.73,602.03,2.52430555]
[1743365562116,1.457,602.73,602.04,0.33220384]
[1743365563317,1.457,602.73,602.04,2.85650939]
[1743365565816,1.457,602.73,602.07,2.52430555]
[1743365566017,1.457,602.73,602.08,0.33218176]
[1743365567214,1.457,602.73,602.18,2.52430555]
[1743365568713,1.457,602.73,602.22,2.52430555]
[1743365569117,1.457,602.73,602.23,0.33209903]
[1743365570615,1.457,602.73,602.41,2.52430555]
[1743365572127,1.457,602.73,602.33,2.52430555]
[1743365572323,1.457,602.73,602.34,0.33203838]
[1743365572518,1.542,602.72,602.34,0.33203838]
[1743365581629,1.542,602.72,602.35,2.52430555]
[1743365581842,1.542,602.72,602.36,0.33202735]
[1743365582729,1.367,602.71,602.36,0.33202735]
[1743365583230,1.458,602.7,602.36,0.33202735]
[1743365601755,2.722,602.7,602.36,0.33202735]
[1743365611451,4.014,602.7,602.36,0.33202735]
[1743365622660,2.12893669,602.7,602.36,0.33202735]
[1743365622861,1.292,602.7,602.36,0.33202735]
[1743365623161,0.28869007,603.57,602.36,0.33202735]
[1743365623862,6.99387174,604.03,602.36,0.33202735]
[1743365624064,0.28852133,603.57,602.86,2.52430555]
[1743365624363,7.82319542,604.02,602.86,2.52430555]
[1743365624563,3.54617965,604.01,602.86,2.52430555]
[1743365624765,1.64026863,603.98,602.86,2.52430555]
[1743365625061,0.6356855,603.97,602.86,2.52430555]
[1743365625359,0.63569098,603.96,602.86,2.52430555]
[1743365625562,0.63569098,603.96,602.9,2.52430555]
[1743365625563,0.63569647,603.95,602.9,2.52430555]
[1743365625763,0.63570195,603.94,602.9,2.52430555]
[1743365625971,0.63570743,603.93,602.9,2.52430555]
[1743365626165,0.63571292,603.92,602.9,2.52430555]
[1743365626365,0.30454323,603.91,602.9,2.52430555]
[1743365626560,1.50254323,603.91,602.9,2.52430555]
[1743365626761,0.63572388,603.9,602.9,2.52430555]
[1743365626963,0.30454323,603.89,602.9,2.52430555]
[1743365627367,0.30454323,603.89,602.89,2.52430555]
[1743365627567,0.33119162,603.88,602.89,2.52430555]
[1743365627865,0.30454323,603.87,602.89,2.52430555]
[1743365628069,0.33120259,603.86,602.89,2.52430555]
[1743365628776,0.30455048,603.85,602.81,2.52430555]
[1743365629071,1.63954637,603.81,602.81,2.52430555]
[1743365629271,3.99756295,603.8,602.81,2.52430555]
[1743365629567,4.92732848,603.79,602.81,2.52430555]
[1743365629774,6.41495333,603.78,602.8,2.52430555]
[1743365629975,7.57518516,603.77,602.8,2.52430555]
[1743365630172,7.07791938,603.76,602.8,2.52430555]
[1743365630368,7.07791938,603.75,602.8,2.52430555]
[1743365630566,7.07791938,603.74,602.8,2.52430555]
[1743365630770,7.07791938,603.73,602.8,2.52430555]
[1743365630967,7.07791938,603.72,602.8,2.52430555]
[1743365631272,7.07791938,603.71,602.8,2.52430555]
[1743365631470,7.07791938,603.7,602.8,2.52430555]
[1743365631666,5.59029453,603.69,602.8,2.52430555]
[1743365631970,5.59029453,603.68,602.8,2.52430555]
[1743365632174,5.59029453,603.67,602.61,0.28851296]
[1743365632471,5.59030542,603.66,602.61,0.28851296]
[1743365632667,2.46726951,603.65,602.58,2.52430555]
[1743365632870,1.53750398,603.64,602.58,2.52430555]
[1743365633070,1.53750398,603.63,602.58,2.52430555]
[1743365633268,1.53750398,603.62,602.58,2.52430555]
[1743365633474,1.53750398,603.61,602.44,2.52430555]
[1743365633675,1.53750398,603.6,602.45,0.33197775]
[1743365633974,1.53750398,603.59,602.45,0.62054932]
[1743365634170,1.53750398,603.58,602.45,0.62054932]
[1743365634370,1.53750398,603.57,602.45,0.62054932]
[1743365634570,1.53750398,603.56,602.45,0.62054932]
[1743365634774,1.53750398,603.55,602.45,0.62054932]
[1743365634978,1.53750398,603.54,602.45,0.62054932]
[1743365635177,1.53750398,603.53,602.45,0.62054932]
[1743365635373,1.53750398,603.52,602.45,0.62054932]
[1743365635571,1.53750398,603.54,602.45,0.62054932]
[1743365635769,0.66302109,603.73,602.45,0.62054932]
[1743365635770,2.79752262,603.53,602.45,0.33197775]
[1743365635971,1.53750398,603.52,602.45,0.33197775]
[1743365636173,1.53750398,603.51,602.45,0.33197775]
[1743365636374,1.53750398,603.5,602.45,0.33197775]
[1743365636575,1.53750398,603.49,602.45,0.33197775]
[1743365636777,1.26001864,603.51,602.45,0.33197775]
[1743365636978,1.5390719,603.5,602.45,0.62056727]
[1743365637179,1.5390719,603.49,602.45,0.62056727]
[1743365637473,1.5393847,603.48,602.45,0.62056727]
[1743365637672,1.26001864,603.5,602.45,0.62056727]
[1743365637872,1.26001864,603.47,602.45,0.62056727]
[1743365638778,1.26001864,603.46,602.45,0.62056727]
[1743365639476,1.26001864,603.45,602.45,0.62056727]
[1743365640279,1.26001864,603.44,602.45,0.62056727]
[1743365640977,1.26001864,603.43,602.46,2.52430555]
[1743365641181,1.26001864,603.43,602.47,0.33196673]
[1743365641380,1.54009912,603.47,602.47,0.33196673]
[1743365641579,0.28858952,603.53,602.47,0.33196673]
[1743365641782,1.54010284,603.52,602.47,0.33196673]
[1743365641976,1.54010284,603.51,602.47,0.33196673]
[1743365642180,1.54010284,603.5,602.47,0.33196673]
[1743365642380,1.54010284,603.49,602.47,0.33196673]
[1743365642581,1.54010284,603.48,602.58,2.52430555]
[1743365642781,1.54010284,603.47,602.58,2.52430555]
[1743365642981,1.54010284,603.46,602.58,2.52430555]
[1743365643185,1.28321891,603.51,602.58,2.52430555]
[1743365643384,1.28321891,603.46,602.58,2.52430555]
[1743365644180,1.28321891,603.45,602.58,2.52430555]
[1743365644381,1.28321891,603.45,602.51,2.52430555]
[1743365644586,1.28321891,603.44,602.51,2.52430555]
[1743365645184,1.28321891,603.43,602.52,0.33193918]
[1743365646187,1.28321891,603.42,602.52,0.33193918]
[1743365646490,1.28321891,603.42,602.55,2.52430555]
[1743365646888,1.28321891,603.42,602.56,0.33191715]
[1743365647294,1.28321891,603.41,602.56,0.33191715]
[1743365647792,1.28321891,603.41,602.63,2.52430555]
[1743365647988,1.54306896,603.51,602.63,2.52430555]
[1743365648193,0.66302109,603.59,602.63,2.52430555]
[1743365648387,4.01187239,603.58,602.63,2.52430555]
[1743365648588,4.01187239,603.57,602.63,2.52430555]
[1743365648786,0.33121356,603.84,602.63,2.52430555]
[1743365648787,1.54302784,603.56,602.63,2.52430555]
[1743365648990,1.54302784,603.55,602.63,2.52430555]
[1743365649188,1.54302784,603.54,602.66,2.52430555]
[1743365649394,1.54302784,603.53,602.66,2.52430555]
[1743365649594,1.54302784,603.52,602.66,2.52430555]
[1743365649794,1.54302784,603.51,602.66,2.52430555]
[1743365649995,1.28538901,603.51,602.66,2.52430555]
[1743365650696,1.28538901,603.5,602.66,2.52430555]
[1743365651595,14.7931855,622.18,602.66,2.52430555]
[1743365651596,1.28538901,603.49,602.66,2.52430555]
[1743365652192,1.28538901,603.48,602.65,2.52430555]
[1743365652991,1.28538901,603.47,602.65,2.52430555]
[1743365653497,2.4689611,603.58,602.65,2.52430555]
[1743365653695,0.28854166,603.6,602.65,2.52430555]
[1743365653696,1.586,603.46,602.65,2.52430555]
[1743365654196,1.586,603.46,602.73,2.52430555]
[1743365655195,1.586,603.46,602.63,0.28853807]
[1743365655196,1.586,603.46,602.72,2.52430555]
[1743365659402,1.586,603.46,602.73,2.52430555]
[1743365662294,1.586,603.46,602.72,2.52430555]
[1743365664299,1.586,603.46,602.69,0.28853927]
[1743365665709,1.586,603.46,602.65,2.52430555]
[1743365666602,1.28537561,603.45,602.65,2.52430555]
[1743365666812,1.28537561,603.45,602.69,2.52430555]
[1743365667704,1.28537561,603.44,602.69,2.52430555]
[1743365668208,1.586,603.46,602.7,2.52430555]
[1743365668806,1.3,603.53,602.7,2.52430555]
[1743365669007,1.28533547,603.45,602.7,2.52430555]
[1743365669813,1.28533547,603.44,602.7,2.52430555]
[1743365670412,3.13182952,603.55,602.7,2.52430555]
[1743365670609,4.01189698,603.54,602.7,2.52430555]
[1743365670809,1.54301328,603.53,602.7,2.52430555]
[1743365671011,1.54301328,603.52,602.7,2.52430555]
[1743365671205,1.54301328,603.51,602.7,2.52430555]
[1743365671409,1.54301328,603.5,602.7,2.52430555]
[1743365671607,1.54301328,603.49,602.7,2.52430555]
[1743365671812,3.34201731,603.5,602.7,2.52430555]
[1743365672011,1.543024,603.49,602.7,2.52430555]
[1743365672205,1.28539127,603.49,602.7,2.52430555]
[1743365672907,1.329,603.52,602.7,2.52430555]
[1743365672908,2.70139127,603.48,602.7,2.52430555]
[1743365673114,2.70139127,603.48,602.74,2.52430555]
[1743365673316,1.28539127,603.47,602.74,2.52430555]
[1743365673715,1.11,603.46,602.74,2.52430555]
[1743365673916,2.39539127,603.46,602.74,2.52430555]
[1743365674517,1.28539127,603.45,602.74,2.52430555]
[1743365675218,1.11,603.46,602.56,0.33191715]
[1743365675219,1.28539127,603.44,602.71,2.81284362]
[1743365676019,1.11,603.46,602.71,2.81284362]
[1743365676319,1.28536504,603.45,602.71,2.81284362]
[1743365676719,1.28536504,603.45,602.72,2.52430555]
[1743365676921,1.11,603.46,602.72,2.52430555]
[1743365678116,1.28530162,603.45,602.72,2.52430555]
[1743365678318,1.28530162,603.45,602.56,0.33191715]
[1743365678916,1.28530162,603.44,602.56,0.33191715]
[1743365679121,1.28530162,603.44,602.57,0.28868767]
[1743365679418,1.11,603.46,602.58,0.33190613]
[1743365680225,1.11,603.46,602.66,2.53523139]
[1743365680419,1.28531363,603.45,602.66,2.53523139]
[1743365680816,1.11,603.46,602.66,2.53523139]
[1743365682223,1.11,603.46,602.61,0.28854645]
[1743365682224,1.11,603.46,602.7,2.53523139]
[1743365683318,1.11,603.46,602.73,2.53523139]
[1743365684619,1.11,603.46,602.75,2.53523139]
[1743365684818,1.416,603.48,602.75,2.53523139]
[1743365687019,1.416,603.48,602.76,2.53523139]
[1743365688327,1.416,603.48,602.8,2.53523139]
[1743365688626,1.431,603.47,602.8,2.53523139]
[1743365689625,1.2852164,603.46,602.8,2.53523139]
[1743365689829,1.2852164,603.46,602.63,2.53523139]
[1743365690122,1.2852164,603.45,602.63,2.53523139]
[1743365690626,1.2852164,603.44,602.63,2.53523139]
[1743365691026,1.2852164,603.44,602.64,0.28855123]
[1743365691226,1.431,603.47,602.64,0.28855123]
[1743365692227,1.28530132,603.46,602.64,0.28855123]
[1743365692624,1.572,603.45,602.62,2.53523139]
[1743365693025,1.28530132,603.44,602.63,2.53523139]
[1743365693725,1.572,603.45,602.63,2.53523139]
[1743365694022,1.572,603.45,602.64,0.28855243]
[1743365695228,1.28547996,603.44,602.64,0.28855243]
[1743365695831,1.28547996,603.44,602.59,2.53523139]
[1743365696028,1.572,603.45,602.59,2.53523139]
[1743365696029,1.572,603.45,602.6,0.33189512]
[1743365696924,1.572,603.45,602.61,2.82378741]
[1743365698825,1.572,603.45,602.61,2.53523139]
[1743365699023,1.572,603.45,602.61,2.82378501]
[1743365699631,1.572,603.45,602.61,0.28855362]
[1743365700432,1.572,603.45,602.62,0.3318841]
[1743365713338,1.572,603.45,602.62,2.86711549]
[1743365714941,1.572,603.45,602.62,0.3318841]
[1743365717241,2.674,603.45,602.62,0.3318841]
[1743365719744,2.674,603.45,602.8,2.53523139]
[1743365720044,2.674,603.45,602.81,0.33177949]
[1743365721447,2.674,603.45,602.84,2.53523139]
[1743365721647,2.674,603.45,602.85,0.33175748]
[1743365729754,4.011,603.45,602.85,0.33175748]
[1743365738658,4.011,603.45,602.9,2.53523139]
[1743365738863,4.011,603.45,602.91,0.33172446]
[1743365747269,4.011,603.45,602.92,2.53523139]
[1743365747472,4.011,603.45,602.93,0.33171346]
[1743365749772,4.011,603.45,602.94,2.53523139]
[1743365750076,4.011,603.45,602.95,0.33170246]
[1743365751273,4.011,603.45,602.96,2.53523139]
[1743365751573,4.011,603.45,602.97,0.33169146]
[1743365752676,4.011,603.45,603.02,2.53523139]
[1743365752873,4.011,603.45,603.03,0.33165845]
[1743365756875,4.011,603.45,603.03,2.86688984]
[1743365758584,4.011,603.45,603.04,2.53523139]
[1743365758783,4.011,603.45,603.05,0.33164745]
[1743365761181,4.011,603.45,603.16,2.53523139]
[1743365761585,1.337,603.45,603.16,2.53523139]
[1743365763787,1.337,603.45,603.18,2.53523139]
[1743365764987,1.337,603.45,603.19,2.53523139]
[1743365765985,1.337,603.45,603.22,2.53523139]
[1743365767094,1.337,603.45,603.23,2.53523139]
[1743365769293,1.337,603.45,603.13,0.28835756]
[1743365769294,1.337,603.45,603.25,2.53523139]
[1743365770992,1.337,603.45,603.22,2.53523139]
[1743365772095,1.337,603.45,603.29,2.53523139]
[1743365774887,1.337,603.45,603.28,2.53523139]
[1743365776290,1.337,603.45,603.23,2.53523139]
[1743365777597,1.337,603.45,603.15,2.53523139]
[1743365777997,1.337,603.45,603.22,0.28835756]
[1743365779800,1.337,603.45,603.07,2.53523139]
[1743365779997,1.337,603.45,603.22,0.28837548]
[1743365780400,1.337,603.45,603.08,0.33163096]
[1743365780900,1.337,603.45,603.09,2.53523139]
[1743365781198,1.337,603.45,603.1,0.33161996]
[1743365782712,1.337,603.45,603.1,2.86685135]
[1743365784403,1.337,603.45,603.1,0.33161996]
[1743365785007,1.337,603.45,603.1,0.62013172]
[1743365785707,1.337,603.45,603.1,0.33161996]
[1743365787007,1.337,603.45,603.1,0.62011857]
[1743365787609,2.722,603.45,603.1,0.62011857]
[1743365788911,2.722,603.45,603.1,0.33161996]
[1743365790112,2.722,603.45,603.1,0.6201078]
[1743365791911,2.722,603.45,603.1,0.33161996]
[1743365793117,2.722,603.45,603.1,0.62009585]
[1743365796415,2.722,603.45,603.1,0.33161996]
[1743365796715,2.722,603.45,603.1,0.62003368]
[1743365797713,2.722,603.45,603.1,0.33161996]
[1743365799021,2.722,603.45,603.1,0.62005878]
[1743365800718,2.722,603.45,603.1,0.33161996]
[1743365802117,2.722,603.45,603.1,0.62004325]
[1743365802717,4.364,603.45,603.1,0.62004325]
[1743365803821,4.364,603.45,603.1,0.33161996]
[1743365805022,4.364,603.45,603.1,0.62006835]
[1743365806823,4.364,603.45,603.1,0.33161996]
[1743365808222,4.364,603.45,603.1,0.62006715]
[1743365809816,4.364,603.45,603.1,0.33161996]
[1743365811118,4.364,603.45,603.1,0.62006476]
[1743365812925,4.364,603.45,603.1,0.33161996]
[1743365859562,4.364,603.45,603.1,2.86685135]
[1743365860766,4.364,603.45,603.1,0.33161996]
[1743365890899,4.364,603.45,603.1,2.86685135]
[1743365892202,4.364,603.45,603.1,0.33161996]
[1743365929031,4.364,603.45,603.1,2.86685135]
[1743365930229,4.364,603.45,603.1,0.33161996]
[1743365980768,4.364,603.45,603.11,2.53523139]
[1743365984471,4.364,603.45,603.1,0.33161996]
[1743366030413,4.364,603.45,603.1,2.86685135]
[1743366033811,4.364,603.45,603.1,0.33161996]
[1743366079046,4.364,603.45,603.14,2.53523139]
[1743366079246,0.28840894,603.99,603.14,2.53523139]
[1743366079453,4.00402268,603.98,603.14,2.53523139]
[1743366079647,1.54000872,603.97,603.14,2.53523139]
[1743366079850,1.54000872,603.96,603.14,2.53523139]
[1743366080050,1.54000872,603.95,603.14,2.53523139]
[1743366080252,1.54000872,603.94,603.18,2.53523139]
[1743366080448,1.54000872,603.93,603.18,2.53523139]
[1743366080646,1.54000872,603.92,603.18,2.53523139]
[1743366080853,1.54000872,603.91,603.18,2.53523139]
[1743366081048,3.33515275,603.93,603.18,2.53523139]
[1743366081252,1.54002002,603.92,603.12,2.53523139]
[1743366081555,4.21877108,603.91,603.12,2.53523139]
[1743366081754,1.53999468,603.9,603.12,2.53523139]
[1743366081956,1.53998505,603.89,603.12,2.53523139]
[1743366082154,1.28275106,603.9,603.12,2.53523139]
[1743366082353,1.53999936,603.89,603.12,2.53523139]
[1743366082552,2.82275042,603.88,603.12,2.53523139]
[1743366082755,1.53999936,603.87,603.12,2.53523139]
[1743366082953,1.53999936,603.86,603.11,2.53523139]
[1743366083151,1.5396207,603.85,603.11,2.53523139]
[1743366083358,1.5396207,603.84,603.11,2.53523139]
[1743366083655,4.87438847,603.83,603.11,2.53523139]
[1743366083856,1.5396207,603.82,603.11,2.53523139]
[1743366084055,1.5396207,603.81,603.1,0.33161996]
[1743366084256,1.5396207,603.8,603.1,0.33161996]
[1743366084454,1.5396207,603.79,603.1,0.33161996]
[1743366084658,1.5396207,603.78,603.1,0.33161996]
[1743366084852,1.5396207,603.77,603.1,0.33161996]
[1743366085053,1.28275106,603.77,603.1,0.33161996]
[1743366085757,1.28275106,603.76,603.1,0.33161996]
[1743366086857,2.04952499,603.88,603.1,0.33161996]
[1743366086858,1.28275106,603.75,603.1,0.33161996]
[1743366087955,1.28275106,603.74,603.1,0.33161996]
[1743366088761,1.28275106,603.73,603.1,0.33161996]
[1743366089361,4.51255537,603.85,603.1,0.33161996]
[1743366089563,1.53872681,603.84,603.1,0.33161996]
[1743366089764,1.53872681,603.83,603.1,0.33161996]
[1743366089959,1.53872681,603.82,603.1,0.33161996]
[1743366090161,1.53872681,603.81,603.1,0.33161996]
[1743366090361,1.53872681,603.8,603.1,0.33161996]
[1743366090563,1.53872681,603.79,603.1,0.33161996]
[1743366090763,1.53872681,603.78,603.1,0.33161996]
[1743366091064,1.28169836,603.78,603.1,0.33161996]